bitfinex/quotes_BTCUSD_20260127
["timestamp","ask_amount","ask_price","bid_price","bid_amount"]
[1769552919510,0.00011557,89165.0,89148.0,0.12507248]
[1769552919807,0.00011557,89165.0,89149.0,0.02279698]
[1769552921782,0.11199817,89164.0,89149.0,0.02279698]
[1769552921979,0.11199817,89163.0,89150.0,0.1022755]
[1769552922178,0.11199817,89162.0,89150.0,0.1022755]
[1769552922442,0.11199817,89161.0,89150.0,0.1022755]
[1769552922637,0.11199817,89160.0,89150.0,0.1022755]
[1769552922840,0.11199817,89159.0,89150.0,0.1022755]
[1769552923004,0.11199817,89158.0,89150.0,0.1022755]
[1769552923205,0.00011557,89165.0,89150.0,0.1022755]
[1769552923569,0.11198798,89164.0,89150.0,0.1022755]
[1769552923721,0.11198798,89163.0,89150.0,0.1022755]
[1769552923962,0.11198798,89162.0,89150.0,0.1022755]
[1769552924154,0.11198798,89161.0,89150.0,0.1022755]
[1769552924356,0.11198798,89160.0,89150.0,0.1022755]
[1769552924514,0.11198798,89159.0,89150.0,0.1022755]
[1769552924734,0.11198798,89158.0,89150.0,0.1022755]
[1769552924958,0.00011557,89165.0,89150.0,0.1022755]
[1769552925161,0.11198554,89164.0,89150.0,0.1022755]
[1769552925316,0.11198554,89163.0,89150.0,0.1022755]
[1769552925519,0.11198554,89162.0,89150.0,0.1022755]
[1769552925742,0.11198554,89161.0,89150.0,0.1022755]
[1769552926026,0.11198554,89160.0,89150.0,0.1022755]
[1769552926197,0.11198554,89159.0,89150.0,0.1022755]
[1769552926402,0.11198554,89158.0,89150.0,0.1022755]
[1769552926576,0.02274808,89165.0,89150.0,0.1022755]
[1769552926745,0.11198361,89164.0,89150.0,0.1022755]
[1769552926948,0.11198361,89163.0,89150.0,0.1022755]
[1769552927144,0.11198361,89162.0,89150.0,0.1022755]
[1769552927363,0.11198361,89161.0,89150.0,0.1022755]
[1769552927572,0.11198361,89160.0,89150.0,0.1022755]
[1769552927775,0.11198361,89159.0,89150.0,0.1022755]
[1769552928020,0.11198361,89158.0,89150.0,0.1022755]
[1769552928213,0.02263251,89164.0,89150.0,0.1022755]
[1769552928377,0.1346202,89163.0,89150.0,0.1022755]
[1769552928592,0.11198769,89162.0,89150.0,0.1022755]
[1769552928781,0.11198769,89161.0,89150.0,0.1022755]
[1769552928977,0.11198769,89160.0,89150.0,0.1022755]
[1769552929218,0.11198769,89159.0,89150.0,0.1022755]
[1769552929528,0.02263251,89163.0,89150.0,0.1022755]
[1769552929731,0.11199446,89162.0,89150.0,0.1022755]
[1769552929893,0.11199446,89161.0,89150.0,0.1022755]
[1769552930097,0.02263251,89163.0,89150.0,0.1022755]
[1769552930098,0.11199446,89160.0,89150.0,0.1022755]
[1769552930278,0.11199446,89159.0,89150.0,0.1022755]
[1769552930479,0.11199621,89158.0,89150.0,0.1022755]
[1769552930739,0.11199621,89157.0,89150.0,0.1022755]
[1769552930898,0.02263251,89164.0,89150.0,0.1022755]
[1769552931078,0.11199641,89163.0,89150.0,0.1022755]
[1769552931327,0.00011557,89165.0,89150.0,0.1022755]
[1769552931328,0.13462892,89162.0,89150.0,0.1022755]
[1769552931504,0.11199641,89161.0,89150.0,0.1022755]
[1769552934210,0.11199641,89160.0,89150.0,0.1022755]
[1769552934411,0.11199641,89159.0,89150.0,0.1022755]
[1769552934769,0.11199641,89158.0,89150.0,0.1022755]
[1769552935079,0.11199641,89157.0,89150.0,0.1022755]
[1769552935207,0.11199641,89156.0,89150.0,0.1022755]
[1769552935418,0.02263251,89162.0,89150.0,0.1022755]
[1769552935619,0.1120531,89161.0,89150.0,0.1022755]
[1769552935928,0.08978446,89165.0,89137.0,0.05625756]
[1769552935929,0.00028354,89150.0,89137.0,0.0001642]
[1769552936127,0.02707602,89149.0,89137.0,0.0001642]
[1769552937144,0.02707602,89149.0,89138.0,0.10539162]
[1769552939900,0.11207936,89148.0,89138.0,0.10539162]
[1769552940105,0.02707602,89149.0,89138.0,0.10539162]
[1769552941818,0.02932518,89157.0,89139.0,0.26468572]
[1769552942154,0.11205561,89156.0,89140.0,0.10539162]
[1769552942369,0.11205561,89155.0,89140.0,0.10539162]
[1769552942699,0.11205561,89154.0,89140.0,0.10539162]
[1769552942879,0.11205561,89153.0,89140.0,0.10539162]
[1769552943089,0.1152,89163.0,89144.0,0.05608864]
[1769552943332,0.1152,89163.0,89150.0,0.37007734]
[1769552943877,0.1152,89163.0,89150.0,0.26468572]
[1769552944076,0.1152,89163.0,89151.0,0.10539162]
[1769552947199,0.02944075,89165.0,89151.0,0.10539162]
[1769552947200,0.00011557,89165.0,89151.0,0.10539162]
[1769552949103,0.00011557,89165.0,89152.0,0.10539162]
[1769552949310,0.00011557,89165.0,89155.0,0.26468572]
[1769552949612,8.07e-05,89174.0,89161.0,0.10539162]
[1769552949613,2.069e-05,89174.0,89161.0,0.10539162]
[1769552949887,9.959e-05,89174.0,89161.0,0.10539162]
[1769552950581,9.959e-05,89174.0,89165.0,0.10539162]
[1769552950797,9.959e-05,89174.0,89164.0,0.26468572]
[1769552950798,0.02707612,89187.0,89167.0,0.05607398]
[1769552950988,0.02707612,89187.0,89174.0,9.959e-05]
[1769552951147,0.02707612,89187.0,89174.0,0.00056813]
[1769552951352,0.02707612,89187.0,89174.0,0.00046854]
[1769552955117,0.1118774,89186.0,89174.0,0.00046854]
[1769552955317,0.02707612,89187.0,89174.0,0.00046854]
[1769552955480,0.11184801,89186.0,89174.0,0.00046854]
[1769552955820,0.02707612,89187.0,89174.0,0.00046854]
[1769552956047,0.11184791,89186.0,89174.0,0.00046854]
[1769552956290,0.02707612,89187.0,89174.0,0.00046854]
[1769552959361,0.0002449,89189.0,89175.0,0.10539162]
[1769552968539,0.0002449,89189.0,89179.0,0.26468572]
[1769552968751,0.03607134,89202.0,89180.0,0.09838437]
[1769552968952,0.08964467,89203.0,89174.0,0.00046854]
[1769552968953,0.03607134,89200.0,89184.0,0.09838437]
[1769552969193,0.0002449,89203.0,89184.0,0.09838437]
[1769552969194,0.14782657,89199.0,89184.0,0.09838437]
[1769552969359,0.11175523,89198.0,89184.0,0.09838437]
[1769552969567,0.14782657,89197.0,89184.0,0.09838437]
[1769552969767,0.11175523,89196.0,89184.0,0.09838437]
[1769552970339,0.03607134,89197.0,89184.0,0.09838437]
[1769552974555,0.11181509,89196.0,89184.0,0.09838437]
[1769552974764,0.03607134,89197.0,89184.0,0.09838437]
[1769552974936,0.11181505,89196.0,89184.0,0.09838437]
[1769552975152,0.03607134,89197.0,89184.0,0.09838437]
[1769552975387,0.11181505,89196.0,89184.0,0.09838437]
[1769552975588,0.03607134,89197.0,89184.0,0.09838437]
[1769552975750,0.1118421,89196.0,89184.0,0.09838437]
[1769552975953,0.03607134,89197.0,89184.0,0.09838437]
[1769552976185,0.1118421,89196.0,89184.0,0.09838437]
[1769552976405,0.11187082,89195.0,89186.0,0.26468572]
[1769552976719,0.03607134,89197.0,89184.0,0.09838437]
[1769552976905,0.11185405,89196.0,89184.0,0.09838437]
[1769552977119,0.11185405,89195.0,89184.0,0.09838437]
[1769552977418,0.11188022,89194.0,89184.0,0.09838437]
[1769552977593,0.03607134,89197.0,89184.0,0.09838437]
[1769552977804,0.11187936,89196.0,89184.0,0.09838437]
[1769552978006,0.03607134,89197.0,89184.0,0.09838437]
[1769552978324,0.11188003,89196.0,89184.0,0.09838437]
[1769552978547,0.11188003,89195.0,89184.0,0.09838437]
[1769552978818,0.03607134,89197.0,89185.0,0.26468572]
[1769552979426,0.11195518,89196.0,89184.0,0.09838437]
[1769552979601,0.11195518,89195.0,89184.0,0.09838437]
[1769552979803,0.03607134,89197.0,89184.0,0.09838437]
[1769552980006,0.11195518,89196.0,89184.0,0.09838437]
[1769552980189,0.03607134,89197.0,89184.0,0.09838437]
[1769552980392,0.11195961,89196.0,89184.0,0.09838437]
[1769552980727,0.03607134,89197.0,89184.0,0.09838437]
[1769552980954,0.11198049,89196.0,89184.0,0.09838437]
[1769552981102,0.03607134,89197.0,89184.0,0.09838437]
[1769552981301,0.1119807,89196.0,89186.0,0.26468572]
[1769552981551,0.03607134,89197.0,89186.0,0.26468572]
[1769552981712,0.11197732,89196.0,89186.0,0.26468572]
[1769552982063,0.03607134,89197.0,89186.0,0.26468572]
[1769552982260,0.11197755,89196.0,89186.0,0.26468572]
[1769552982479,0.03607134,89197.0,89186.0,0.26468572]
[1769552982632,0.11197661,89196.0,89186.0,0.26468572]
[1769552982845,0.03607134,89197.0,89186.0,0.26468572]
[1769552983245,0.11197485,89196.0,89186.0,0.26468572]
[1769552983454,0.03607134,89197.0,89186.0,0.26468572]
[1769552983652,0.11197631,89196.0,89186.0,0.26468572]
[1769552983834,0.03607134,89197.0,89186.0,0.26468572]
[1769552984042,0.11197529,89196.0,89186.0,0.26468572]
[1769552984242,0.03607134,89197.0,89186.0,0.26468572]
[1769552984444,0.11198558,89196.0,89186.0,0.26468572]
[1769552984654,0.03607134,89197.0,89186.0,0.26468572]
[1769552984827,0.11198248,89196.0,89186.0,0.26468572]
[1769552985023,0.03607134,89197.0,89186.0,0.26468572]
[1769552985279,0.11198239,89196.0,89186.0,0.26468572]
[1769552985525,0.03607134,89197.0,89186.0,0.26468572]
[1769552985734,0.11198088,89196.0,89186.0,0.26468572]
[1769552985958,0.03607134,89197.0,89186.0,0.26468572]
[1769552986126,0.11198025,89196.0,89186.0,0.26468572]
[1769552986289,0.03607134,89197.0,89186.0,0.26468572]
[1769552986492,0.11198045,89196.0,89186.0,0.26468572]
[1769552986702,0.03607134,89197.0,89186.0,0.26468572]
[1769552986906,0.11197834,89196.0,89186.0,0.26468572]
[1769552987132,0.03607134,89197.0,89186.0,0.26468572]
[1769552987304,0.11197747,89196.0,89186.0,0.26468572]
[1769552987501,0.0002449,89203.0,89187.0,0.09838437]
[1769552987502,0.03856488,89203.0,89187.0,0.09838437]
[1769552987722,0.11197635,89202.0,89190.0,0.26468572]
[1769552988065,0.03856488,89203.0,89190.0,0.26468572]
[1769552988066,0.11197635,89201.0,89190.0,0.26468572]
[1769552988208,0.11197635,89200.0,89190.0,0.26468572]
[1769552988409,0.11197635,89199.0,89190.0,0.26468572]
[1769552988614,0.11197635,89198.0,89190.0,0.26468572]
[1769552988837,0.11197635,89197.0,89190.0,0.26468572]
[1769552989041,0.0002402,89197.0,89190.0,0.26468572]
[1769552990543,0.0002402,89197.0,89174.0,0.22474909]
[1769552990544,0.00028354,89190.0,89180.0,0.26468572]
[1769552990858,0.03631137,89197.0,89181.0,0.09838437]
[1769552993278,0.08958477,89206.0,89198.0,0.09838437]
[1769552993279,0.000185,89206.0,89198.0,0.09838437]
[1769552993511,0.000185,89206.0,89174.0,0.00046854]
[1769552993512,0.11198846,89205.0,89191.0,0.09838437]
[1769552993706,0.000185,89206.0,89191.0,0.09838437]
[1769552993707,0.11198846,89204.0,89191.0,0.09838437]
[1769552993888,0.11198846,89203.0,89191.0,0.09838437]
[1769552994135,0.11198846,89202.0,89180.0,0.37984572]
[1769552994439,0.000185,89206.0,89180.0,0.37984572]
[1769552994440,0.03382228,89196.0,89180.0,0.37984572]
[1769552995055,0.03382228,89196.0,89180.0,0.47908358]
[1769552995714,0.03382228,89196.0,89181.0,0.09923786]
[1769553001137,0.11203182,89195.0,89181.0,0.09923786]
[1769553001341,0.02490518,89195.0,89181.0,0.09923786]
[1769553001766,0.1120305,89194.0,89174.0,0.00046854]
[1769553001992,0.10103487,89191.0,89174.0,0.00046854]
[1769553002150,0.05605194,89203.0,89167.0,0.000185]
[1769553002151,0.10103487,89189.0,89167.0,0.000185]
[1769553002506,0.10103487,89183.0,89167.0,2.784e-05]
[1769553002651,0.02490518,89181.0,89167.0,2.784e-05]
[1769553003433,0.02490518,89188.0,89171.0,0.09923786]
[1769553003639,0.02490518,89186.0,89171.0,0.09923786]
[1769553003755,0.11205061,89185.0,89171.0,0.09923786]
[1769553003952,0.00046928,89189.0,89170.0,0.26446491]
[1769553003953,0.11205061,89184.0,89170.0,0.26446491]
[1769553004191,0.00046928,89189.0,89170.0,0.26446491]
[1769553004192,0.02490518,89181.0,89170.0,0.26446491]
[1769553004408,0.02490518,89179.0,89167.0,2.784e-05]
[1769553005189,0.02490518,89179.0,89169.0,0.26446491]
[1769553006376,0.10103487,89180.0,89169.0,0.26446491]
[1769553010816,0.10103487,89180.0,89167.0,2.784e-05]
[1769553011017,0.10103487,89180.0,89130.0,0.26446491]
[1769553011018,0.02490518,89177.0,89159.0,0.02348818]
[1769553011253,0.05606299,89186.0,89156.0,0.09942286]
[1769553011254,0.10103487,89174.0,89160.0,0.26446491]
[1769553011498,0.179527,89189.0,89156.0,0.000185]
[1769553011499,0.10103487,89172.0,89156.0,0.000185]
[1769553011618,0.26446491,89180.0,89156.0,0.000185]
[1769553011619,0.10103487,89170.0,89156.0,0.000185]
[1769553012713,0.10103487,89170.0,89150.0,0.37962491]
[1769553012714,7.07e-05,89154.0,89152.0,0.02348818]
[1769553013134,0.10103487,89165.0,89146.0,0.02348818]
[1769553013536,0.01869163,89164.0,89146.0,0.02348818]
[1769553013732,0.10103487,89161.0,89145.0,0.000185]
[1769553013883,0.10103487,89159.0,89145.0,0.000185]
[1769553014337,0.10103487,89159.0,89141.0,0.05609036]
[1769553014338,0.10103487,89159.0,89142.0,0.02348818]
[1769553014483,0.10103487,89159.0,89142.0,0.05609021]
[1769553014683,0.10103487,89159.0,89143.0,0.09923786]
[1769553015017,0.10103487,89159.0,89144.0,0.02348818]
[1769553016002,0.00046899,89161.0,89144.0,0.02348818]
[1769553016212,0.00046899,89161.0,89150.0,0.29136441]
[1769553016415,0.00046899,89161.0,89151.0,0.0268995]
[1769553021219,0.00046899,89161.0,89152.0,0.02914819]
[1769553021513,0.10103487,89169.0,89151.0,0.05608435]
[1769553021514,0.0001227,89177.0,89164.0,0.02914819]
[1769553021666,0.0001227,89177.0,89164.0,0.02922709]
[1769553022069,0.10115757,89177.0,89164.0,0.02922709]
[1769553024330,0.11182281,89176.0,89164.0,0.02922709]
[1769553024567,0.10115757,89177.0,89164.0,0.02922709]
[1769553024746,0.11182341,89176.0,89164.0,0.02922709]
[1769553024916,0.10115757,89177.0,89164.0,0.02922709]
[1769553025121,0.11182342,89176.0,89164.0,0.02922709]
[1769553025340,0.10115757,89177.0,89164.0,0.02922709]
[1769553025580,0.11183764,89176.0,89164.0,0.02922709]
[1769553025807,0.10115757,89177.0,89164.0,0.02922709]
[1769553026035,0.11183764,89176.0,89164.0,0.02922709]
[1769553026171,0.10115757,89177.0,89164.0,0.02922709]
[1769553026369,0.11184323,89176.0,89164.0,0.02922709]
[1769553026670,0.11184323,89175.0,89164.0,0.02922709]
[1769553026871,0.10115757,89177.0,89164.0,0.02922709]
[1769553027092,0.11185306,89176.0,89164.0,0.02922709]
[1769553027264,0.11185306,89175.0,89164.0,0.02922709]
[1769553027494,0.0001227,89177.0,89164.0,0.02922709]
[1769553027815,0.11187395,89176.0,89164.0,0.09933997]
[1769553027972,0.11187395,89175.0,89165.0,0.02296247]
[1769553028178,0.0001227,89177.0,89165.0,0.02296247]
[1769553028377,0.11187968,89176.0,89165.0,0.02296247]
[1769553028602,0.11187968,89175.0,89165.0,0.02296247]
[1769553028931,0.11187968,89174.0,89165.0,0.02296247]
[1769553029117,0.0001227,89177.0,89165.0,0.02296247]
[1769553029312,0.11190338,89176.0,89165.0,0.02296247]
[1769553029515,0.11190338,89175.0,89165.0,0.02296247]
[1769553029691,0.11190338,89174.0,89165.0,0.02296247]
[1769553029859,0.11190338,89173.0,89165.0,0.02296247]
[1769553030064,0.0001227,89177.0,89165.0,0.02296247]
[1769553030267,0.11193238,89176.0,89165.0,0.02296247]
[1769553030463,0.11193238,89175.0,89164.0,7.89e-05]
[1769553030835,0.24022224,89174.0,89164.0,7.89e-05]
[1769553031044,0.11193238,89173.0,89164.0,7.89e-05]
[1769553031191,0.11193238,89172.0,89164.0,7.89e-05]
[1769553031398,0.12828986,89174.0,89164.0,7.89e-05]
[1769553031399,0.11193238,89171.0,89164.0,7.89e-05]
[1769553031596,0.11193238,89170.0,89164.0,7.89e-05]
[1769553031837,0.11193238,89169.0,89164.0,7.89e-05]
[1769553032198,0.12828986,89174.0,89164.0,7.89e-05]
[1769553032199,0.11197614,89168.0,89164.0,7.89e-05]
[1769553032412,0.02404871,89173.0,89164.0,7.89e-05]
[1769553032584,0.11197646,89172.0,89164.0,7.89e-05]
[1769553032760,0.10424115,89170.0,89164.0,7.89e-05]
[1769553032965,0.02404871,89167.0,89164.0,7.89e-05]
[1769553035162,0.11199801,89166.0,89164.0,7.89e-05]
[1769553035357,0.02404871,89167.0,89153.0,0.09926107]
[1769553035565,0.11199701,89166.0,89153.0,0.09937664]
[1769553035782,0.02404871,89167.0,89153.0,0.09937664]
[1769553035986,0.11199765,89166.0,89153.0,0.09937664]
[1769553036187,0.02404871,89167.0,89153.0,0.09937664]
[1769553036383,0.11200909,89166.0,89153.0,0.09937664]
[1769553036547,0.02404871,89167.0,89153.0,0.09937664]
[1769553036749,0.11200965,89166.0,89153.0,0.09937664]
[1769553037055,0.02404871,89167.0,89153.0,0.09937664]
[1769553037283,0.11202336,89166.0,89153.0,0.09937664]
[1769553039128,0.11202336,89165.0,89153.0,0.09937664]
[1769553039365,0.11202336,89164.0,89153.0,0.09937664]
[1769553039597,0.11202336,89163.0,89153.0,0.00011557]
[1769553039719,0.02404871,89164.0,89153.0,0.00011557]
[1769553040120,0.11208768,89163.0,89153.0,0.00011557]
[1769553040370,0.02404871,89164.0,89153.0,0.00011557]
[1769553040579,0.1120879,89163.0,89153.0,0.00011557]
[1769553040802,0.1120879,89162.0,89153.0,0.00011557]
[1769553040979,0.02404871,89164.0,89153.0,0.00011557]
[1769553041182,0.1121063,89163.0,89153.0,0.00011557]
[1769553041417,0.1121063,89162.0,89153.0,0.00011557]
[1769553041593,0.1121063,89161.0,89153.0,0.00011557]
[1769553041738,0.02404871,89164.0,89153.0,0.00011557]
[1769553041941,0.11210221,89163.0,89153.0,0.00011557]
[1769553042137,0.11210221,89162.0,89153.0,0.00011557]
[1769553042503,0.11210221,89161.0,89153.0,0.00011557]
[1769553042820,0.11210835,89160.0,89153.0,0.00011557]
[1769553042955,0.11210835,89159.0,89153.0,0.00011557]
[1769553043294,0.02404871,89161.0,89153.0,0.00011557]
[1769553043498,0.11210258,89160.0,89153.0,0.00011557]
[1769553043646,0.11210258,89159.0,89153.0,0.00011557]
[1769553043849,0.02404871,89161.0,89153.0,0.00011557]
[1769553044050,0.11210649,89160.0,89153.0,0.00011557]
[1769553044294,0.11210649,89159.0,89153.0,0.00011557]
[1769553044504,0.02404871,89161.0,89153.0,0.00011557]
[1769553044737,0.11210397,89160.0,89153.0,0.00011557]
[1769553044945,0.11210397,89159.0,89153.0,0.00011557]
[1769553045259,0.02404871,89161.0,89153.0,0.00011557]
[1769553045494,0.11210263,89160.0,89153.0,0.00011557]
[1769553045704,0.02404871,89161.0,89153.0,0.00011557]
[1769553045705,0.11210263,89159.0,89153.0,0.00011557]
[1769553045881,0.02404871,89161.0,89153.0,0.00011557]
[1769553046081,0.11210199,89160.0,89153.0,0.00011557]
[1769553046240,0.11210199,89159.0,89153.0,0.00011557]
[1769553046442,0.02404871,89161.0,89153.0,0.00011557]
[1769553046644,0.11209998,89160.0,89153.0,0.00011557]
[1769553046831,0.11209998,89159.0,89153.0,0.00011557]
[1769553047066,0.02404871,89161.0,89153.0,0.00011557]
[1769553047263,0.11209653,89160.0,89153.0,0.00011557]
[1769553047517,0.11209653,89159.0,89153.0,0.00011557]
[1769553047840,0.02404871,89161.0,89153.0,0.00011557]
[1769553047989,0.11209644,89160.0,89153.0,0.00011557]
[1769553048314,0.11209644,89159.0,89153.0,0.00011557]
[1769553048526,0.02404871,89161.0,89153.0,0.00011557]
[1769553048726,0.02404871,89159.0,89153.0,0.00011557]
[1769553048892,0.11209248,89158.0,89153.0,0.00011557]
[1769553049087,0.02404871,89159.0,89153.0,0.00011557]
[1769553049287,0.10424115,89165.0,89153.0,0.00011557]
[1769553049491,0.13613735,89164.0,89153.0,0.00011557]
[1769553049803,0.11208864,89163.0,89153.0,0.00011557]
[1769553050005,0.11208864,89162.0,89153.0,0.00011557]
[1769553050212,0.11208864,89161.0,89153.0,0.00011557]
[1769553050394,0.02404871,89164.0,89153.0,0.00011557]
[1769553050395,0.11208864,89160.0,89154.0,0.09926107]
[1769553050726,0.02404871,89164.0,89153.0,0.00011557]
[1769553050953,0.11208612,89163.0,89153.0,0.00011557]
[1769553051095,0.11208612,89162.0,89153.0,0.00011557]
[1769553051451,0.11208612,89161.0,89153.0,0.00011557]
[1769553051617,0.11208612,89160.0,89153.0,0.00011557]
[1769553051820,0.02404871,89164.0,89153.0,0.00011557]
[1769553052008,0.112083,89163.0,89153.0,0.00011557]
[1769553052232,0.112083,89162.0,89153.0,0.00011557]
[1769553052429,0.112083,89161.0,89153.0,0.00011557]
[1769553052640,0.112083,89160.0,89153.0,0.00011557]
[1769553052787,0.02404871,89164.0,89153.0,0.00011557]
[1769553052989,0.11208515,89163.0,89153.0,0.00011557]
[1769553053244,0.11208515,89162.0,89153.0,0.00011557]
[1769553053443,0.11208515,89161.0,89153.0,0.00011557]
[1769553053596,0.11208515,89160.0,89153.0,0.00011557]
[1769553053800,0.02404871,89164.0,89153.0,0.00011557]
[1769553054022,0.11208906,89163.0,89153.0,0.00011557]
[1769553054238,0.11208906,89162.0,89153.0,0.00011557]
[1769553054441,0.11208906,89161.0,89153.0,0.00011557]
[1769553054738,0.02404871,89164.0,89153.0,0.00011557]
[1769553054966,0.11209487,89163.0,89153.0,0.00011557]
[1769553055172,0.11209487,89162.0,89153.0,0.00011557]
[1769553055467,0.11209487,89161.0,89153.0,0.00011557]
[1769553055670,0.02404871,89164.0,89153.0,0.00011557]
[1769553055832,0.11210152,89163.0,89153.0,0.00011557]
[1769553056042,0.11210152,89162.0,89153.0,0.00011557]
[1769553056243,0.11210152,89161.0,89153.0,0.00011557]
[1769553056501,0.02404871,89164.0,89153.0,0.00011557]
[1769553056703,0.11210195,89163.0,89153.0,0.00011557]
[1769553056905,0.11210195,89162.0,89153.0,0.00011557]
[1769553057125,0.11209625,89161.0,89153.0,0.00011557]
[1769553057264,0.02404871,89164.0,89153.0,0.00011557]
[1769553057454,0.11209657,89163.0,89153.0,0.00011557]
[1769553057647,0.11209657,89162.0,89153.0,0.00011557]
[1769553057850,0.11209657,89161.0,89153.0,0.00011557]
[1769553058052,0.02404871,89164.0,89153.0,0.00011557]
[1769553058307,0.11210933,89163.0,89153.0,0.00011557]
[1769553058487,0.11210933,89162.0,89153.0,0.00011557]
[1769553058690,0.11210933,89161.0,89153.0,0.00011557]
[1769553058875,0.02404871,89164.0,89153.0,0.00011557]
[1769553059202,0.11210933,89163.0,89153.0,0.00011557]
[1769553059506,0.11210933,89162.0,89153.0,0.00011557]
[1769553059705,0.11210933,89161.0,89153.0,0.00011557]
[1769553059996,0.02404871,89164.0,89153.0,0.00011557]
[1769553060151,0.11214476,89163.0,89153.0,0.00011557]
[1769553060353,0.11214476,89162.0,89153.0,0.00011557]
[1769553060559,0.11214476,89161.0,89153.0,0.00011557]
[1769553060765,0.11214476,89160.0,89153.0,0.00011557]
[1769553060984,0.02404871,89164.0,89153.0,0.00011557]
[1769553061216,0.11214542,89163.0,89153.0,0.00011557]
[1769553061385,0.11214542,89162.0,89153.0,0.10837451]
[1769553061586,0.11214542,89161.0,89153.0,0.16445765]
[1769553061774,0.10022636,89172.0,89153.0,0.16445765]
[1769553061776,0.02349479,89176.0,89158.0,0.10825894]
[1769553061973,0.02349479,89176.0,89158.0,0.13145524]
[1769553062392,0.12372115,89176.0,89158.0,0.13145524]
[1769553063142,0.12372115,89176.0,89160.0,0.26446491]
[1769553063355,0.02349479,89179.0,89160.0,0.26446491]
[1769553063526,0.02349479,89179.0,89161.0,0.10825894]
[1769553063910,0.10022636,89181.0,89161.0,0.10825894]
[1769553063911,0.02361749,89177.0,89161.0,0.10825894]
[1769553064452,0.12384385,89177.0,89161.0,0.10825894]
[1769553065264,0.12384385,89177.0,89168.0,0.10825894]
[1769553065265,0.0001227,89177.0,89168.0,0.10825894]
[1769553065667,0.08967077,89190.0,89171.0,0.10825894]
[1769553065857,0.10022636,89189.0,89171.0,0.10825894]
[1769553066047,0.12372115,89188.0,89171.0,0.10825894]
[1769553066256,0.12372115,89188.0,89163.0,0.22430737]
[1769553066257,0.0002493,89192.0,89178.0,0.26449613]
[1769553066462,0.10022636,89205.0,89188.0,0.10825894]
[1769553066664,0.02349479,89209.0,89191.0,0.10825894]
[1769553066863,0.02349479,89209.0,89191.0,0.16431816]
[1769553067209,0.02349479,89209.0,89191.0,0.10825894]
[1769553067764,0.00032295,89207.0,89191.0,0.10825894]
[1769553068155,0.10022636,89206.0,89190.0,0.26449613]
[1769553068421,0.12372115,89206.0,89190.0,0.26449613]
[1769553069926,0.10022636,89206.0,89190.0,0.26449613]
[1769553070122,0.02349479,89205.0,89190.0,0.26449613]
[1769553072581,0.10022636,89205.0,89190.0,0.26449613]
[1769553072813,0.12372115,89204.0,89183.0,0.12612784]
[1769553072962,0.02349479,89203.0,89183.0,0.12612784]
[1769553073367,0.12372115,89203.0,89183.0,0.12612784]
[1769553073802,0.10022636,89203.0,89153.0,0.44866359]
[1769553074026,0.02349479,89198.0,89170.0,0.26449613]
[1769553074347,0.10022636,89193.0,89170.0,0.26449613]
[1769553074552,0.26449613,89200.0,89170.0,0.26449613]
[1769553074553,0.10022636,89191.0,89170.0,0.26449613]
[1769553074762,0.10022636,89189.0,89170.0,0.26449613]
[1769553074992,0.10022636,89185.0,89170.0,0.26449613]
[1769553075166,0.12372115,89185.0,89170.0,0.26449613]
[1769553083960,0.10022636,89185.0,89170.0,0.26449613]
[1769553084118,0.10022636,89185.0,89170.0,0.34447016]
[1769553084333,0.10022636,89185.0,89170.0,0.28839769]
[1769553085958,0.10022636,89185.0,89170.0,0.26449613]
[1769553086316,0.10022636,89185.0,89171.0,0.02498184]
[1769553094119,0.11516,89199.0,89163.0,0.03116554]
[1769553094120,0.01,89171.0,89163.0,0.03116554]
[1769553094322,0.10348689,89170.0,89158.0,0.12063159]
[1769553094528,0.10348689,89170.0,89138.0,0.22471721]
[1769553094529,0.10348689,89170.0,89155.0,0.08946605]
[1769553094892,0.10348689,89170.0,89155.0,0.03116554]
[1769553095282,0.10348689,89170.0,89155.0,0.03128111]
[1769553096086,0.10348689,89170.0,89156.0,0.03341436]
[1769553096873,0.26449613,89180.0,89156.0,0.03341436]
[1769553097087,0.11191213,89179.0,89158.0,0.03341436]
[1769553097295,0.10348689,89177.0,89158.0,0.03341436]
[1769553097562,0.26449613,89180.0,89157.0,0.05608069]
[1769553097563,0.21539902,89176.0,89161.0,0.03341436]
[1769553097719,0.10348689,89179.0,89161.0,0.03341436]
[1769553097897,0.10348689,89177.0,89161.0,0.03341436]
[1769553098103,0.10348689,89190.0,89170.0,0.0379124]
[1769553098306,0.10348689,89188.0,89170.0,0.0379124]
[1769553098626,0.1118985,89187.0,89170.0,0.0379124]
[1769553098840,0.1118985,89186.0,89170.0,0.0379124]
[1769553099000,0.1118985,89185.0,89170.0,0.0379124]
[1769553099199,0.1118985,89184.0,89170.0,0.0379124]
[1769553099419,0.1118985,89183.0,89170.0,0.0379124]
[1769553099624,0.1118985,89182.0,89170.0,0.0379124]
[1769553099821,0.10348689,89190.0,89170.0,0.0379124]
[1769553100054,0.21539163,89189.0,89170.0,0.0379124]
[1769553100378,0.11190474,89188.0,89170.0,0.0379124]
[1769553100575,0.10348689,89189.0,89170.0,0.0379124]
[1769553100576,0.11190474,89187.0,89170.0,0.0379124]
[1769553100782,0.11190474,89186.0,89170.0,0.0379124]
[1769553100979,0.10348689,89189.0,89170.0,0.0379124]
[1769553101182,0.11193115,89188.0,89170.0,0.0379124]
[1769553101510,0.11193115,89187.0,89170.0,0.0379124]
[1769553101778,0.11193115,89186.0,89170.0,0.0379124]
[1769553101980,0.10348689,89189.0,89170.0,0.0379124]
[1769553102141,0.11194548,89188.0,89170.0,0.0379124]
[1769553102342,0.11194548,89187.0,89170.0,0.0379124]
[1769553102566,0.11194548,89186.0,89170.0,0.0379124]
[1769553102763,0.10348689,89189.0,89170.0,0.0379124]
[1769553102966,0.11196054,89188.0,89170.0,0.0379124]
[1769553103131,0.11196054,89187.0,89170.0,0.0379124]
[1769553103338,0.10348689,89189.0,89170.0,0.0379124]
[1769553103339,0.11196054,89186.0,89170.0,0.0379124]
[1769553103545,0.10348689,89189.0,89170.0,0.0379124]
[1769553103763,0.2154639,89188.0,89170.0,0.0379124]
[1769553103990,0.11197701,89187.0,89170.0,0.0379124]
[1769553104200,0.11197701,89186.0,89170.0,0.0379124]
[1769553104416,0.10348689,89188.0,89170.0,0.0379124]
[1769553104631,0.11197818,89187.0,89170.0,0.0379124]
[1769553104833,0.11197818,89186.0,89170.0,0.0379124]
[1769553105036,0.10348689,89188.0,89170.0,0.0379124]
[1769553105272,0.10348689,89186.0,89170.0,0.0379124]
[1769553105475,0.26449613,89190.0,89170.0,0.0379124]
[1769553105476,0.10348689,89184.0,89170.0,0.0379124]
[1769553109370,0.11197271,89183.0,89170.0,0.0379124]
[1769553109568,0.11197271,89182.0,89170.0,0.30240853]
[1769553109873,0.10348689,89184.0,89171.0,0.04690851]
[1769553110221,0.11196164,89183.0,89171.0,0.04690851]
[1769553110425,0.10348689,89184.0,89171.0,0.04690851]
[1769553110610,0.11195457,89183.0,89171.0,0.04690851]
[1769553110915,0.10348689,89184.0,89171.0,0.04690851]
[1769553111118,0.11194816,89183.0,89171.0,0.04690851]
[1769553111347,0.10348689,89184.0,89171.0,0.04690851]
[1769553111500,0.11192964,89183.0,89171.0,0.04690851]
[1769553111814,0.10348689,89184.0,89171.0,0.04690851]